bitfinex/quotes_SOLUSD_20250717
["timestamp","ask_amount","ask_price","bid_price","bid_amount"]
[1752725526956,0.1,170.11,170.1,5.8483083]
[1752725527248,6.65854917,170.11,170.08,5.1283083]
[1752725528029,5.97854917,170.11,170.08,5.8483083]
[1752725528425,5.97854917,170.11,170.08,5.1283083]
[1752725529062,5.97854917,170.11,170.09,5.1283083]
[1752725529361,5.97854917,170.11,170.1,5.8483083]
[1752725530150,0.1,170.11,170.1,5.8483083]
[1752725531050,5.97854917,170.11,170.1,5.8483083]
[1752725531251,5.97854917,170.11,170.1,5.1283083]
[1752725533360,5.97854917,170.11,170.08,0.72]
[1752725533657,5.97854917,170.11,170.1,5.1283083]
[1752725533847,0.68,170.1,170.05,5.1283083]
[1752725534052,5.8083083,170.1,170.05,5.1283083]
[1752725534250,0.68,170.09,170.05,5.1283083]
[1752725534456,5.8083083,170.09,170.04,5.1283083]
[1752725534662,0.68,170.08,170.04,5.1283083]
[1752725535162,5.8083083,170.1,170.05,5.8483083]
[1752725535339,5.8083083,170.1,170.06,5.1283083]
[1752725535538,5.1283083,170.1,170.05,5.8483083]
[1752725535739,0.68,170.09,170.05,5.8483083]
[1752725535964,5.87958607,170.08,170.06,5.8483083]
[1752725537666,50.68468123,170.11,170.07,5.99046987]
[1752725537667,0.1,170.11,170.07,5.99046987]
[1752725537838,0.1,170.11,170.1,5.1283083]
[1752725538040,0.1,170.11,170.1,10.39877817]
[1752725538357,0.1,170.11,170.1,16.99767293]
[1752725539664,0.1,170.11,170.1,11.11877817]
[1752725540559,0.1,170.11,170.1,5.99046987]
[1752725540866,0.1,170.11,170.1,5.8483083]
[1752725541949,0.1,170.11,170.1,16.99767293]
[1752725542556,0.1,170.11,170.1,47.11767293]
[1752725543566,0.1,170.11,170.1,63.9023569]
[1752725544039,0.1,170.11,170.1,53.6457403]
[1752725544241,0.1,170.11,170.1,63.9023569]
[1752725544441,0.1,170.11,170.1,47.11767293]
[1752725544654,0.03,170.16,170.1,54.81202841]
[1752725544870,0.03,170.16,170.15,5.1283083]
[1752725545065,0.03,170.16,170.12,0.14216157]
[1752725545270,0.03,170.16,170.15,5.1283083]
[1752725545475,0.03,170.16,170.15,5.8383083]
[1752725546348,0.03,170.16,170.15,0.85216157]
[1752725546648,0.03,170.16,170.15,5.98046987]
[1752725546959,0.03,170.16,170.14,8.1047]
[1752725547161,0.03,170.16,170.15,5.8383083]
[1752725547469,0.03,170.16,170.15,0.85216157]
[1752725547784,0.03,170.16,170.15,5.98046987]
[1752725547972,0.03,170.16,170.15,26.85216157]
[1752725548176,0.03,170.16,170.15,5.98046987]
[1752725548776,0.03,170.16,170.15,5.8383083]
[1752725549862,0.03,170.16,170.15,5.1283083]
[1752725550777,15.41053872,170.18,170.16,5.1283083]
[1752725551768,5.87647646,170.17,170.16,5.1283083]
[1752725552156,14.69053872,170.18,170.16,5.1283083]
[1752725552382,15.41053872,170.18,170.16,5.1283083]
[1752725552681,14.69053872,170.18,170.16,5.1283083]
[1752725552863,15.41053872,170.18,170.16,5.1283083]
[1752725553386,20.56666987,170.18,170.17,5.1283083]
[1752725553981,20.56666987,170.18,170.14,0.71]
[1752725554178,5.87613115,170.18,170.15,26.14216157]
[1752725554376,5.87613115,170.18,170.17,5.1283083]
[1752725554565,5.87544065,170.2,170.17,5.1283083]
[1752725554764,5.87544065,170.2,170.18,0.71]
[1752725555589,14.68828137,170.21,170.18,0.71]
[1752725555767,5.87475032,170.22,170.15,26.14216157]
[1752725556083,0.72,170.21,170.17,5.1283083]
[1752725556280,0.72,170.2,170.17,5.1283083]
[1752725556464,0.72,170.2,170.18,5.1283083]
[1752725556872,20.56162612,170.22,170.18,5.1283083]
[1752725557074,21.28162612,170.22,170.18,5.1283083]
[1752725557278,21.28162612,170.22,170.16,0.71]
[1752725557279,21.28162612,170.22,170.19,5.1283083]
[1752725558088,0.72,170.21,170.19,5.1283083]
[1752725559492,20.56162612,170.22,170.19,5.1283083]
[1752725559672,5.87475032,170.22,170.2,5.1283083]
[1752725559878,5.87440521,170.23,170.21,5.1283083]
[1752725560083,5.87440521,170.23,170.22,5.1283083]
[1752725560588,5.87440521,170.23,170.21,5.1283083]
[1752725560972,6.59440521,170.23,170.21,5.1283083]
[1752725561175,6.59440521,170.23,170.19,0.71]
[1752725561495,5.87440521,170.23,170.21,5.1283083]
[1752725561881,5.87440521,170.23,170.22,5.1283083]
[1752725562197,5.87440521,170.23,170.2,0.71]
[1752725562394,5.87440521,170.23,170.22,5.1283083]
[1752725562798,5.87440521,170.23,170.21,5.1283083]
[1752725562979,5.87440521,170.23,170.19,0.71]
[1752725563200,6.59440521,170.23,170.21,5.1283083]
[1752725563574,5.87440521,170.23,170.21,5.1283083]
[1752725563774,6.59440521,170.23,170.21,5.1283083]
[1752725564196,5.87371512,170.25,170.22,5.8383083]
[1752725564496,5.87371512,170.25,170.23,0.61630857]
[1752725564792,5.87371512,170.25,170.24,5.1283083]
[1752725565596,14.68219666,170.28,170.19,30.62]
[1752725565799,0.72,170.25,170.22,5.1283083]
[1752725566104,0.72,170.25,170.19,30.62]
[1752725566284,20.53050496,170.28,170.24,5.1283083]
[1752725566478,0.72,170.27,170.24,5.1283083]
[1752725567401,19.81050496,170.28,170.22,0.71]
[1752725567583,25.68318525,170.28,170.23,5.1283083]
[1752725568112,20.55487695,170.28,170.24,5.1283083]
[1752725568599,20.55487695,170.28,170.19,0.14216157]
[1752725568789,20.55487695,170.28,170.24,5.1283083]
[1752725568977,20.55487695,170.28,170.19,5.27046987]
[1752725569182,25.68318525,170.28,170.19,0.14216157]
[1752725569378,25.68318525,170.28,170.23,5.1283083]
[1752725569595,20.55487695,170.28,170.24,5.1283083]
[1752725569805,20.55487695,170.28,170.25,5.1283083]
[1752725570220,20.55487695,170.28,170.19,0.14216157]
[1752725570500,20.55487695,170.28,170.25,5.1283083]
[1752725571496,20.55487695,170.28,170.26,5.1283083]
[1752725571898,14.68219666,170.28,170.26,5.1283083]
[1752725572294,14.68219666,170.28,170.19,0.14216157]
[1752725572603,14.68219666,170.28,170.25,5.1283083]
[1752725573381,5.87233542,170.29,170.26,5.1283083]
[1752725574502,5.87233542,170.29,170.28,5.1283083]
[1752725575728,5.87130108,170.32,170.28,5.1283083]
[1752725575932,20.54955378,170.32,170.26,1.5143]
[1752725576102,20.54955378,170.32,170.28,5.1283083]
[1752725576923,20.04955378,170.32,170.29,5.1283083]
[1752725577301,20.04955378,170.32,170.3,5.1283083]
[1752725577504,20.04955378,170.32,170.26,1.5143]
[1752725577719,3.05890685,170.34,170.26,1.5143]
[1752725577720,5.87084325,170.34,170.31,5.1283083]
[1752725577913,20.54548563,170.36,170.27,26.0]
[1752725578124,20.54548563,170.36,170.32,5.1283083]
[1752725578714,25.67379393,170.36,170.31,5.1283083]
[1752725579204,25.67379393,170.36,170.26,70.23936598]
[1752725579205,20.54548563,170.36,170.32,5.1283083]
[1752725580221,25.67379393,170.36,170.26,64.50826157]
[1752725580424,5.1283083,170.35,170.3,5.1283083]
[1752725580614,35.7083083,170.35,170.3,5.1283083]
[1752725581517,35.7083083,170.35,170.26,33.7661]
[1752725581518,5.1283083,170.34,170.29,5.1283083]
[1752725582428,5.1283083,170.32,170.27,5.1283083]
[1752725582726,20.54834731,170.33,170.22,7.645]
[1752725582727,5.1283083,170.3,170.22,7.645]
[1752725582930,49.9031292,170.33,170.25,5.1283083]
[1752725583231,5.1283083,170.3,170.25,5.1283083]
[1752725583405,5.1283083,170.31,170.22,33.645]
[1752725583605,5.1283083,170.3,170.25,5.1283083]
[1752725583922,5.1283083,170.31,170.26,5.1283083]
[1752725584123,5.1283083,170.29,170.22,7.645]
[1752725584331,20.55438101,170.28,170.24,5.1283083]
[1752725584622,20.55438101,170.28,170.25,5.1283083]
[1752725585913,5.87268029,170.28,170.25,5.1283083]
[1752725586113,5.87268029,170.28,170.26,5.1283083]
[1752725586418,5.87233542,170.29,170.26,5.1283083]
[1752725587115,5.87233542,170.29,170.23,26.0]
[1752725587314,5.87095637,170.33,170.28,5.1283083]
[1752725587631,5.87095637,170.33,170.29,5.1283083]
[1752725588130,5.1283083,170.32,170.23,26.0]
[1752725588299,5.87164582,170.31,170.27,5.1283083]
[1752725589131,20.55076037,170.31,170.23,56.54]
[1752725589429,20.55076037,170.31,170.27,5.1283083]
[1752725589927,25.67906867,170.31,170.23,26.0]
[1752725590227,5.1283083,170.3,170.25,5.1283083]
[1752725590427,5.87233542,170.29,170.25,5.1283083]
[1752725590739,25.68148228,170.29,170.24,5.1283083]
[1752725591226,20.55317398,170.29,170.24,5.1283083]
[1752725591732,5.1283083,170.28,170.23,5.1283083]
[1752725591935,20.55317398,170.29,170.2,5.1283083]
[1752725591936,5.1283083,170.25,170.2,5.1283083]
[1752725592311,5.87371512,170.25,170.21,5.1283083]
[1752725593813,6.52371512,170.25,170.21,5.1283083]
[1752725594423,5.87371512,170.25,170.19,0.7]
[1752725594628,0.65,170.24,170.2,5.1283083]
[1752725595619,5.87440521,170.23,170.19,0.7]
[1752725595808,5.87440521,170.23,170.2,5.1283083]
[1752725596432,5.87440521,170.23,170.2,5.8283083]
[1752725596620,6.52440521,170.23,170.2,5.1283083]
[1752725596821,0.65,170.22,170.2,5.1283083]
[1752725597029,0.65,170.22,170.19,5.1283083]
[1752725597227,5.87440521,170.23,170.2,5.1283083]
[1752725597416,5.87440521,170.23,170.16,5.8883083]
[1752725597417,5.1283083,170.21,170.16,5.8883083]
[1752725597618,5.7783083,170.2,170.16,5.8883083]
[1752725597829,5.87578588,170.19,170.16,5.8883083]
[1752725598217,5.87578588,170.19,170.17,5.8283083]
[1752725599843,20.56283414,170.21,170.17,5.8283083]
[1752725600140,21.21283414,170.21,170.17,5.8283083]
[1752725600326,26.34114244,170.21,170.17,5.8283083]
[1752725600534,21.21283414,170.21,170.17,5.8283083]
[1752725600737,26.34114244,170.21,170.16,0.06]
[1752725601040,21.21283414,170.21,170.17,5.8283083]
[1752725601919,14.68773867,170.21,170.18,5.1283083]
[1752725602117,15.33773867,170.21,170.17,5.8283083]
[1752725603029,15.33773867,170.21,170.17,0.7]
[1752725603347,5.87440521,170.23,170.2,5.1283083]
[1752725603539,5.87440521,170.23,170.21,5.8283083]
[1752725603938,14.68573452,170.24,170.21,0.7]
[1752725604138,15.36573452,170.24,170.19,0.69]
[1752725604344,15.36573452,170.24,170.2,0.69]
[1752725604644,15.36573452,170.24,170.21,5.1283083]
[1752725604948,5.87371512,170.25,170.22,5.8183083]
[1752725605157,5.87371512,170.25,170.23,5.1283083]
[1752725606027,5.87337013,170.26,170.23,5.1283083]
[1752725606241,6.55337013,170.26,170.23,5.1283083]
[1752725606450,0.68,170.25,170.23,5.1283083]
[1752725606829,0.68,170.25,170.2,0.69]
[1752725607054,0.68,170.25,170.22,5.1283083]
[1752725607946,5.87406015,170.24,170.22,5.1283083]
[1752725608253,5.87406015,170.24,170.23,5.1283083]
[1752725609230,5.87406015,170.24,170.22,5.1283083]
[1752725609972,0.68,170.25,170.22,5.1283083]
[1752725610860,0.68,170.25,170.2,0.69]
[1752725611165,0.68,170.25,170.22,5.1283083]
[1752725611364,0.68,170.25,170.23,5.1283083]
[1752725611545,20.55679547,170.26,170.23,5.1283083]
[1752725611772,21.23679547,170.26,170.23,5.1283083]
[1752725614479,20.55679547,170.26,170.23,5.1283083]
[1752725614692,0.68,170.25,170.23,5.1283083]
[1752725616802,20.55679547,170.26,170.23,5.1283083]
[1752725617107,21.23679547,170.26,170.23,5.1283083]
[1752725618206,14.68342534,170.26,170.23,5.1283083]
[1752725618396,0.68,170.25,170.23,5.1283083]
[1752725619004,5.87302519,170.27,170.23,0.69]
[1752725619208,5.87302519,170.27,170.26,5.1283083]
[1752725620101,0.68,170.28,170.25,5.1283083]
[1752725620312,0.68,170.27,170.25,5.1283083]
[1752725620799,15.36148256,170.29,170.25,5.1283083]
[1752725620990,0.68,170.28,170.25,5.1283083]
[1752725621400,0.68,170.28,170.26,5.1283083]
[1752725621792,0.68,170.27,170.22,0.69]
[1752725621994,0.68,170.26,170.24,5.1283083]
[1752725622313,5.87371512,170.25,170.24,5.1283083]
[1752725623414,5.87371512,170.25,170.24,5.8183083]
[1752725623914,5.87302519,170.27,170.24,5.8183083]
[1752725624118,0.68,170.27,170.22,0.69]
[1752725624411,0.68,170.27,170.2,13.53692562]
[1752725624412,0.68,170.26,170.24,5.1283083]
[1752725624611,0.68,170.27,170.2,7.6615]
[1752725624822,0.68,170.27,170.21,0.69]
[1752725624823,5.8083083,170.27,170.21,0.69]
[1752725625184,20.55438101,170.28,170.21,5.1283083]
[1752725625185,5.8083083,170.26,170.21,5.1283083]
[1752725625416,0.68,170.25,170.21,5.1283083]
[1752725625597,0.68,170.25,170.19,0.69]
[1752725625598,5.8083083,170.25,170.2,5.1283083]
[1752725625799,0.68,170.24,170.2,5.1283083]
[1752725627016,0.68,170.23,170.2,5.1283083]
[1752725627217,5.87406015,170.24,170.2,5.8183083]
[1752725627524,6.55406015,170.24,170.2,5.8183083]
[1752725628190,5.87475032,170.22,170.2,0.69]
[1752725628509,5.87475032,170.22,170.2,5.1283083]
[1752725628713,5.87475032,170.22,170.21,5.1283083]
[1752725628924,5.87475032,170.22,170.21,5.8183083]
[1752725629516,5.87475032,170.22,170.21,5.1283083]
[1752725630408,5.87406015,170.24,170.21,5.1283083]
[1752725630615,6.55406015,170.24,170.21,5.1283083]
[1752725630807,6.55406015,170.24,170.2,5.8783083]
[1752725631220,6.55406015,170.24,170.2,0.75]
[1752725631409,6.55406015,170.24,170.2,5.8783083]
[1752725631717,5.87406015,170.24,170.22,5.1283083]
[1752725632822,25.68658471,170.25,170.2,5.1883083]
[1752725633004,5.8083083,170.24,170.2,0.06]
[1752725633329,5.8083083,170.24,170.2,5.1883083]
[1752725633530,0.68,170.24,170.2,5.8783083]
[1752725633821,5.8083083,170.24,170.2,5.8783083]
[1752725634028,5.87440521,170.23,170.2,5.8783083]
[1752725634906,0.65,170.22,170.2,0.06]
[1752725635102,5.7783083,170.22,170.2,0.06]
[1752725635304,5.1283083,170.21,170.2,0.06]
[1752725635528,5.7783083,170.21,170.2,0.06]
[1752725635705,0.65,170.21,170.2,0.06]
[1752725636527,11.65340377,170.21,170.2,0.06]
[1752725638632,60.32558774,170.21,170.2,1e-08]
[1752725638805,0.14216157,170.19,170.16,1e-08]
[1752725639127,0.14216157,170.16,170.06,0.74]
[1752725639431,5.1283083,170.11,170.06,5.8683083]
[1752725639724,5.7783083,170.11,170.06,0.74]
[1752725640135,5.7783083,170.11,170.06,5.8683083]
[1752725640439,0.65,170.11,170.07,5.1283083]
[1752725640739,5.87889476,170.1,170.07,5.1283083]
[1752725641243,5.87820362,170.12,170.09,5.8683083]
[1752725641444,14.69267237,170.16,170.1,26.68]
[1752725641730,14.69267237,170.16,170.13,5.1283083]
[1752725641927,0.65,170.17,170.11,0.68]
[1752725641928,5.87647646,170.17,170.15,5.1283083]
[1752725642116,5.87647646,170.17,170.16,5.1283083]
[1752725642520,5.87647646,170.17,170.16,5.8083083]
[1752725642943,20.56579292,170.19,170.16,5.8083083]
[1752725643242,21.21579292,170.19,170.14,0.68]
[1752725643531,21.21579292,170.19,170.16,5.1283083]
[1752725644820,16.78468397,170.21,170.18,5.1283083]
[1752725645026,20.56177888,170.22,170.19,5.1283083]
[1752725645221,20.56177888,170.22,170.18,0.68]
[1752725645222,20.56177888,170.22,170.2,5.1283083]
[1752725645637,20.56177888,170.22,170.19,5.1283083]
[1752725645837,20.56177888,170.22,170.2,5.1283083]
[1752725646144,20.56177888,170.22,170.21,5.1283083]
[1752725646145,22.65943429,170.22,170.21,5.1283083]
[1752725646935,5.87475032,170.22,170.21,5.1283083]
[1752725647722,5.87475032,170.22,170.21,5.8083083]
[1752725648410,14.6849058,170.25,170.21,5.8083083]
[1752725648614,16.78468397,170.26,170.23,5.1283083]
[1752725648815,5.87302519,170.27,170.25,5.1283083]
[1752725649043,14.68226482,170.28,170.25,5.8083083]
[1752725649244,5.87233542,170.29,170.25,5.1283083]
[1752725649426,5.87233542,170.29,170.28,5.1283083]
[1752725649749,5.87233542,170.29,170.28,5.8083083]
[1752725651044,16.78468397,170.31,170.28,5.8083083]
[1752725651236,16.78468397,170.31,170.28,5.1283083]
[1752725651735,16.78468397,170.31,170.26,0.68]
[1752725652042,0.65,170.3,170.27,5.1283083]
[1752725652347,16.78468397,170.31,170.28,5.1283083]
[1752725652916,5.8719906,170.3,170.28,5.1283083]
[1752725653259,5.8719906,170.3,170.29,0.68]
[1752725653739,5.8719906,170.3,170.29,5.8083083]
[1752725653941,5.8719906,170.3,170.29,0.68]
[1752725655032,5.8719906,170.3,170.28,5.1283083]
[1752725655236,20.57955378,170.32,170.28,5.8083083]
[1752725655629,21.22955378,170.32,170.28,5.8083083]
[1752725655832,0.65,170.31,170.27,5.1283083]
[1752725656131,0.65,170.3,170.26,26.68]
[1752725656316,0.65,170.3,170.27,5.1283083]
[1752725656519,16.78468397,170.31,170.27,5.1283083]
[1752725656719,17.43468397,170.31,170.27,5.8083083]
[1752725657136,5.8719906,170.3,170.27,0.68]
[1752725657337,5.8719906,170.3,170.27,5.8083083]
[1752725658023,5.8719906,170.3,170.28,5.1283083]
[1752725658223,5.8719906,170.3,170.28,5.8083083]
[1752725658728,5.8719906,170.3,170.29,5.1283083]
[1752725659260,20.57955378,170.32,170.28,5.8083083]
[1752725659631,21.22955378,170.32,170.28,5.8083083]
[1752725660745,20.57955378,170.32,170.24,6.3693]
[1752725660943,26.35786208,170.32,170.27,5.1283083]
[1752725661140,26.35786208,170.32,170.27,5.8083083]
[1752725662148,21.22955378,170.32,170.27,5.8083083]
[1752725662340,26.35786208,170.32,170.27,5.8083083]
[1752725662544,26.35786208,170.32,170.28,5.1283083]
[1752725663449,5.8719906,170.3,170.28,5.1283083]
[1752725663632,5.8719906,170.3,170.25,0.68]
[1752725663833,6.5219906,170.3,170.28,5.1283083]
[1752725664034,5.8719906,170.3,170.27,5.1283083]
[1752725664236,5.8719906,170.3,170.27,5.8383083]
[1752725664556,6.5319906,170.3,170.27,5.1283083]
[1752725664859,21.21196711,170.3,170.27,5.1283083]
[1752725665040,20.55196711,170.3,170.27,5.8383083]
[1752725666032,15.33997651,170.3,170.27,5.1283083]
[1752725666232,5.87164582,170.31,170.28,5.1283083]
[1752725666434,5.87164582,170.31,170.28,5.8383083]
[1752725666858,5.87164582,170.31,170.28,5.1283083]
[1752725667031,5.87164582,170.31,170.28,5.8383083]
[1752725667976,5.90130108,170.32,170.28,5.8383083]
[1752725668342,20.57955378,170.32,170.28,5.8383083]
[1752725668662,21.23955378,170.32,170.28,5.8383083]
[1752725669262,21.23955378,170.32,170.28,0.71]
[1752725669472,21.23955378,170.32,170.28,5.8383083]
[1752725671963,0.66,170.31,170.28,5.8383083]
[1752725672361,5.8719906,170.3,170.28,5.1283083]
[1752725672564,5.8719906,170.3,170.29,0.71]
[1752725672963,5.8719906,170.3,170.28,5.1283083]
[1752725673172,5.8719906,170.3,170.28,5.8383083]
[1752725673476,6.5319906,170.3,170.27,5.1283083]
[1752725675167,5.8719906,170.3,170.27,5.8383083]
[1752725675471,5.8719906,170.3,170.28,5.1283083]
[1752725676252,5.87164582,170.31,170.28,5.1283083]
[1752725676559,6.53164582,170.31,170.28,5.1283083]
[1752725677268,0.66,170.3,170.28,5.1283083]
[1752725677471,5.87164582,170.31,170.28,5.1283083]
[1752725677665,0.66,170.3,170.25,0.71]
[1752725677979,0.66,170.29,170.27,5.1283083]
[1752725678765,0.66,170.29,170.26,5.1283083]
[1752725679765,5.87268029,170.28,170.26,5.1283083]
[1752725680671,5.87268029,170.28,170.26,5.8383083]
[1752725681378,5.87268029,170.28,170.26,0.71]
[1752725681679,6.53268029,170.28,170.24,5.1283083]
[1752725681874,6.53268029,170.28,170.24,5.8383083]
[1752725682090,0.66,170.27,170.23,5.1283083]
[1752725682254,0.66,170.26,170.23,5.1283083]
[1752725682454,0.66,170.26,170.19,27.6555]
[1752725682455,5.1283083,170.25,170.19,2.3655]
[1752725682676,5.7883083,170.25,170.2,5.8383083]
[1752725682871,0.66,170.24,170.2,5.8383083]
[1752725683484,5.1283083,170.25,170.21,0.71]
[1752725683785,5.87406015,170.24,170.21,0.71]
[1752725685793,26.34751882,170.24,170.19,7.4938083]
[1752725685964,21.21921052,170.24,170.2,5.8383083]
[1752725687188,5.87475032,170.22,170.2,0.71]
[1752725687770,5.87475032,170.22,170.19,5.1283083]
[1752725687963,5.87475032,170.22,170.19,5.8383083]
[1752725688682,5.87475032,170.22,170.19,5.1283083]
[1752725688887,5.87475032,170.22,170.2,0.71]
[1752725689185,5.87440521,170.23,170.2,0.71]
[1752725689560,5.87440521,170.23,170.2,5.8383083]
[1752725690470,5.87440521,170.23,170.21,0.71]
[1752725691079,20.55921052,170.24,170.21,0.71]
[1752725691467,21.21921052,170.24,170.2,5.1283083]
[1752725691668,0.66,170.23,170.2,5.1283083]
[1752725691872,0.66,170.23,170.19,31.8383083]
[1752725692385,0.66,170.23,170.19,31.1283083]
[1752725692591,0.66,170.23,170.2,0.71]
[1752725693269,5.87475032,170.22,170.2,0.71]
[1752725695263,5.87440521,170.23,170.2,0.71]
[1752725695466,20.56041825,170.23,170.2,0.71]
[1752725695665,21.27041825,170.23,170.2,5.8383083]
[1752725696666,21.27041825,170.23,170.16,6.4599]
[1752725696667,5.87509547,170.21,170.18,5.8383083]
[1752725696871,20.56283414,170.21,170.18,5.1283083]
[1752725697072,21.27283414,170.21,170.18,5.1283083]
[1752725697384,21.27283414,170.21,170.16,63.3499]
[1752725697385,5.8383083,170.2,170.16,26.0]
[1752725697687,0.71,170.19,170.15,5.8383083]
[1752725697869,0.71,170.18,170.15,5.8383083]
[1752725698587,5.8383083,170.19,170.15,5.8383083]
[1752725698764,0.71,170.18,170.14,5.1283083]
[1752725698968,5.8383083,170.18,170.13,5.1283083]
[1752725699188,5.8383083,170.18,170.13,5.8383083]
[1752725699189,0.71,170.17,170.13,5.8383083]
[1752725700287,0.71,170.17,170.13,0.71]
[1752725700495,5.8383083,170.17,170.13,0.71]
[1752725700698,5.87682181,170.16,170.13,0.71]
[1752725700905,21.27887634,170.16,170.12,0.06]
[1752725701073,5.8383083,170.15,170.12,0.06]
[1752725702087,6.58751263,170.14,170.12,0.06]
[1752725702667,0.71,170.13,170.12,0.06]
[1752725702866,5.8383083,170.13,170.12,0.06]
[1752725703096,16.78468397,170.12,170.09,0.06]
[1752725703294,30.89,170.12,170.09,0.06]
[1752725703469,30.22,170.13,170.11,5.1283083]
[1752725703668,21.28129422,170.14,170.12,5.1283083]
[1752725703867,21.28129422,170.14,170.11,5.1283083]
[1752725704089,5.87820362,170.12,170.11,5.1283083]
[1752725704297,5.87820362,170.12,170.1,5.1283083]
[1752725704501,6.58820362,170.12,170.09,5.1883083]
[1752725704677,0.71,170.11,170.09,0.06]
[1752725705004,5.87820362,170.12,170.09,0.06]
[1752725705312,0.71,170.11,170.09,0.06]
[1752725705489,5.87820362,170.12,170.09,0.06]
[1752725705686,6.58820362,170.12,170.09,0.06]
[1752725706003,5.87820362,170.12,170.09,0.06]
[1752725706306,5.87820362,170.12,170.09,0.77]
[1752725706492,6.58820362,170.12,170.09,0.77]
[1752725707006,6.58820362,170.12,170.09,0.06]
[1752725707411,5.87820362,170.12,170.1,5.8383083]
[1752725707576,5.87820362,170.12,170.11,5.1283083]
[1752725709611,5.8778581,170.13,170.1,5.8383083]
[1752725709979,6.5878581,170.13,170.1,5.8383083]
[1752725710384,5.87647646,170.17,170.12,5.1283083]
[1752725710708,16.78468397,170.16,170.15,5.1283083]
[1752725711297,16.78468397,170.16,170.14,0.71]
[1752725711491,16.78468397,170.16,170.1,5.1283083]
[1752725711492,5.87647646,170.17,170.15,0.71]
[1752725711683,5.87647646,170.17,170.16,5.8383083]
[1752725712579,5.87647646,170.17,170.16,5.1283083]
[1752725712909,5.87647646,170.17,170.11,0.71]
[1752725712910,16.78468397,170.16,170.11,0.71]
[1752725713088,16.78468397,170.14,170.11,5.1283083]
[1752725713290,16.78468397,170.14,170.11,5.8383083]
[1752725713706,17.49468397,170.14,170.11,5.1283083]
[1752725714010,0.71,170.13,170.11,5.1283083]
[1752725714216,16.78468397,170.14,170.11,5.1283083]
[1752725714582,5.8778581,170.13,170.11,5.1283083]
[1752725715187,5.8778581,170.13,170.12,5.1283083]
[1752725715388,5.8778581,170.13,170.11,5.8383083]
[1752725715587,5.8778581,170.13,170.11,5.1283083]
[1752725716186,5.8778581,170.13,170.09,0.77]
[1752725716187,6.5878581,170.13,170.09,0.77]
[1752725716394,6.5878581,170.13,170.1,5.1283083]
[1752725717295,5.8778581,170.13,170.1,5.8383083]
[1752725717690,5.8778581,170.13,170.1,0.71]
[1752725717907,52.84299227,170.12,170.09,0.06]
[1752725718312,5.8383083,170.11,170.09,0.06]
[1752725719012,22.66357873,170.1,170.09,0.06]
[1752725719222,23.37357873,170.1,170.09,0.06]
[1752725720226,22.66357873,170.1,170.09,0.06]
[1752725720518,5.87820362,170.12,170.09,5.8983083]
[1752725720719,36.07820362,170.12,170.11,5.1283083]
[1752725722917,36.07820362,170.12,170.1,0.71]
[1752725723121,36.07820362,170.12,170.11,5.1283083]
[1752725724700,36.07820362,170.12,170.11,5.8183083]
[1752725725425,36.07820362,170.12,170.11,5.1283083]
[1752725726113,36.07820362,170.12,170.11,5.8183083]
[1752725727419,36.07820362,170.12,170.11,5.1283083]
[1752725728025,5.87820362,170.12,170.11,5.1283083]
[1752725730317,5.87820362,170.12,170.09,0.06]
[1752725730516,5.87820362,170.12,170.1,5.1283083]
[1752725730707,6.55820362,170.12,170.1,5.1283083]
[1752725731139,30.2,170.11,170.1,5.1283083]
[1752725731931,36.0083083,170.11,170.09,0.06]
[1752725732099,0.68,170.1,170.09,0.06]
[1752725732498,30.2,170.11,170.09,5.8783083]
[1752725732944,5.87889476,170.1,170.09,0.06]
[1752725735622,28.47188703,170.1,170.09,0.06]
[1752725735815,23.34357873,170.1,170.09,0.06]
[1752725736225,28.47188703,170.1,170.09,0.06]
[1752725736423,28.6140486,170.1,170.09,0.06]
[1752725738214,23.4857403,170.1,170.09,0.06]
[1752725738414,28.6140486,170.1,170.09,0.06]
[1752725738713,16.78468397,170.09,170.06,0.06]
[1752725738928,16.78468397,170.07,170.06,0.06]
[1752725740442,22.66461576,170.07,170.06,0.06]
[1752725742434,5.87993179,170.07,170.06,5.8783083]
[1752725742635,16.78468397,170.1,170.06,5.8783083]
[1752725742912,5.87889476,170.1,170.09,5.1283083]
[1752725743119,36.07889476,170.1,170.09,5.8183083]
[1752725743519,36.07889476,170.1,170.08,5.1283083]
[1752725743741,36.07889476,170.1,170.08,5.8183083]
[1752725744330,36.07889476,170.1,170.08,5.1283083]
[1752725744533,36.75889476,170.1,170.06,0.75]
[1752725744941,51.45613167,170.1,170.07,5.1283083]